[Event "CCT Chessable Masters Play-In 2025"]
[Site "Online"]
[Date "2025.02.17"]
[Round "1.16"]
[White "Demidov, Mikhail"]
[Black "Vidit, Santosh Gujrathi"]
[Result "0-1"]
[ECO "E14"]
[WhiteElo "2549"]
[BlackElo "2721"]
[PlyCount "84"]
[EventDate "2025.02.13"]
[EventType "swiss"]
[EventCountry "NET"]
[TimeControl "600"]
[WhiteClock "0:01:12"]
[BlackClock "0:01:26"]

1. d4 {[%emt 0:00:03]} Nf6 {[%emt 0:00:02]} 2. Nf3 {[%emt 0:00:01]} e6 {[%emt 0:00:03]} 3. e3 {[%emt 0:00:05]} b6 {[%emt 0:00:10]} 4. Bd3 {[%emt 0:00:03]} Bb7 {[%emt 0:00:01]} 5. O-O {[%emt 0:00:02]} d5 {[%emt 0:00:01]} 6. b3 {[%emt 0:00:21]} Bd6 {[%emt 0:00:01]} 7. Bb2 {[%emt 0:00:01]} O-O {[%emt 0:00:02]} 8. Nbd2 {[%emt 0:00:02]} Nbd7 {[%emt 0:00:03]} 9. c4 {[%emt 0:00:06]} Ne4 {[%emt 0:00:05]} 10. Rc1 {[%emt 0:00:16]} Qe7 {[%emt 0:00:25]} 11. Qc2 {[%emt 0:00:04]} f5 {[%emt 0:00:38]} 12. Ne5 {[%emt 0:00:07]} Nxe5 {[%emt 0:01:26]} 13. dxe5 {[%emt 0:00:03]} Bc5 {[%emt 0:00:02]} 14. Bd4 {[%emt 0:00:45]} Ba3 {[%emt 0:01:05]} 15. Bb2 {[%emt 0:00:02]} Bxb2 {[%emt 0:00:15]} 16. Qxb2 {[%emt 0:00:00]} Rad8 {[%emt 0:00:02]} 17. Nf3 {[%emt 0:01:08]} Nc5 {[%emt 0:00:02]} 18. Be2 {[%emt 0:00:04]} f4 {[%emt 0:00:25]} 19. Rcd1 {[%emt 0:00:58]} fxe3 {[%emt 0:00:07]} 20. fxe3 {[%emt 0:00:00]} a5 {[%emt 0:00:12]} 21. Rd4 {[%emt 0:01:08]} dxc4 {[%emt 0:00:40]} 22. bxc4 {[%emt 0:00:20]} Rf5 {[%emt 0:00:20]} 23. Rxd8+ {[%emt 0:00:11]} Qxd8 {[%emt 0:00:00]} 24. Qd4 {[%emt 0:00:02]} Qe7 {[%emt 0:00:05]} 25. Rd1 {[%emt 0:00:18]} Rf8 {[%emt 0:00:03]} 26. h3 {[%emt 0:00:18]} h6 {[%emt 0:00:02]} 27. Kh2 {[%emt 0:00:11]} Bc6 {[%emt 0:00:13]} 28. Kg1 {[%emt 0:00:02]} Ne4 {[%emt 0:00:06]} 29. Kh2 {[%emt 0:00:05]} Qa3 {[%emt 0:00:02]} 30. Nh4 {[%emt 0:00:23]} Nc3 {[%emt 0:00:44]} 31. Rd3 {[%emt 0:00:33]} Qxa2 {[%emt 0:00:23]} 32. Bg4 {[%emt 0:00:13]} Ne4 {[%emt 0:00:13]} 33. Bxe6+ {[%emt 0:00:01]} Kh7 {[%emt 0:00:02]} 34. Bd5 {[%emt 0:00:10]} Bxd5 {[%emt 0:00:02]} 35. cxd5 {[%emt 0:00:05]} Nc5 {[%emt 0:00:02]} 36. Rd2 {[%emt 0:00:05]} Qb1 {[%emt 0:00:03]} 37. d6 {[%emt 0:00:04]} cxd6 {[%emt 0:00:03]} 38. exd6 {[%emt 0:00:03]} Rf1 {[%emt 0:00:06]} 39. d7 {[%emt 0:00:10]} Qe1 {[%emt 0:00:12]} 40. g4 {[%emt 0:00:14]} Rh1+ {[%emt 0:00:04]} 41. Kg2 {[%emt 0:00:00]} Qf1+ {[%emt 0:00:01]} 42. Kg3 {[%emt 0:00:01]} Rxh3# {[%emt 0:00:01]} 0-1

[Event "CCT Chessable Masters Play-In 2025"]
[Site "Online"]
[Date "2025.02.17"]
[Round "1.17"]
[White "Ding, Liren"]
[Black "Lagarde, Maxime"]
[Result "1/2-1/2"]
[ECO "A28"]
[WhiteElo "2734"]
[BlackElo "2604"]
[PlyCount "92"]
[EventDate "2025.02.13"]
[EventType "swiss"]
[EventCountry "NET"]
[TimeControl "600"]
[WhiteClock "0:00:53"]
[BlackClock "0:00:21"]

1. c4 {[%emt 0:00:34]} e5 {[%emt 0:00:03]} 2. Nc3 {[%emt 0:00:02]} Nf6 {[%emt 0:00:02]} 3. Nf3 {[%emt 0:00:01]} Nc6 {[%emt 0:00:03]} 4. d3 {[%emt 0:00:01]} d5 {[%emt 0:00:08]} 5. cxd5 {[%emt 0:00:00]} Nxd5 {[%emt 0:00:00]} 6. e4 {[%emt 0:00:00]} Nf6 {[%emt 0:00:07]} 7. Be2 {[%emt 0:00:06]} Bc5 {[%emt 0:00:03]} 8. Be3 {[%emt 0:00:02]} Bb6 {[%emt 0:00:02]} 9. h3 {[%emt 0:00:03]} O-O {[%emt 0:00:08]} 10. O-O {[%emt 0:00:02]} Re8 {[%emt 0:00:06]} 11. Rc1 {[%emt 0:00:10]} Be6 {[%emt 0:00:40]} 12. a3 {[%emt 0:00:14]} h6 {[%emt 0:00:04]} 13. Na4 {[%emt 0:00:24]} Nd7 {[%emt 0:00:41]} 14. b4 {[%emt 0:00:24]} a6 {[%emt 0:00:28]} 15. Nxb6 {[%emt 0:00:41]} Nxb6 {[%emt 0:00:00]} 16. Qc2 {[%emt 0:00:44]} Re7 {[%emt 0:00:45]} 17. Rfd1 {[%emt 0:00:09]} Rd7 {[%emt 0:00:02]} 18. Qb2 {[%emt 0:00:33]} Na4 {[%emt 0:00:08]} 19. Qa1 {[%emt 0:00:01]} Nd4 {[%emt 0:00:06]} 20. Nxd4 {[%emt 0:00:04]} exd4 {[%emt 0:00:00]} 21. Bd2 {[%emt 0:00:02]} Rc8 {[%emt 0:00:25]} 22. f4 {[%emt 0:00:17]} f6 {[%emt 0:00:13]} 23. Rf1 {[%emt 0:00:17]} Qe8 {[%emt 0:00:09]} 24. Bd1 {[%emt 0:00:09]} Rdd8 {[%emt 0:00:23]} 25. f5 {[%emt 0:00:15]} Bf7 {[%emt 0:00:08]} 26. Qb1 {[%emt 0:00:22]} c5 {[%emt 0:00:17]} 27. bxc5 {[%emt 0:00:11]} Nxc5 {[%emt 0:00:13]} 28. Ba5 {[%emt 0:00:02]} Rd6 {[%emt 0:00:14]} 29. Bb4 {[%emt 0:00:12]} Qe5 {[%emt 0:00:10]} 30. Rf2 {[%emt 0:00:43]} Rdc6 {[%emt 0:00:07]} 31. Bxc5 {[%emt 0:00:26]} Rxc5 {[%emt 0:00:00]} 32. Rxc5 {[%emt 0:00:00]} Rxc5 {[%emt 0:00:09]} 33. Bb3 {[%emt 0:00:18]} Bxb3 {[%emt 0:00:36]} 34. Qxb3+ {[%emt 0:00:01]} Kh7 {[%emt 0:00:00]} 35. Qxb7 {[%emt 0:00:02]} Qg3 {[%emt 0:00:42]} 36. Qb2 {[%emt 0:00:32]} Qxd3 {[%emt 0:00:08]} 37. Qe2 {[%emt 0:00:04]} Rc1+ {[%emt 0:01:06]} 38. Kh2 {[%emt 0:00:02]} Qxe2 {[%emt 0:00:35]} 39. Rxe2 {[%emt 0:00:01]} Rc3 {[%emt 0:00:10]} 40. Rd2 {[%emt 0:00:10]} d3 {[%emt 0:00:01]} 41. a4 {[%emt 0:00:03]} Rc4 {[%emt 0:00:02]} 42. Rxd3 {[%emt 0:00:03]} Rxe4 {[%emt 0:00:01]} 43. g4 {[%emt 0:00:16]} Rxa4 {[%emt 0:00:06]} 44. Kg3 {[%emt 0:00:08]} h5 {[%emt 0:00:03]} 45. Kh4 {[%emt 0:00:10]} hxg4 {[%emt 0:00:04]} 46. hxg4 {[%emt 0:00:06]} Ra2 {[%emt 0:00:01]} 1/2-1/2

[Event "CCT Chessable Masters Play-In 2025"]
[Site "Online"]
[Date "2025.02.17"]
[Round "1.18"]
[White "Nasuta, Grzegorz"]
[Black "Grischuk, Alexander"]
[Result "1/2-1/2"]
[ECO "B45"]
[WhiteElo "2506"]
[BlackElo "2687"]
[PlyCount "95"]
[EventDate "2025.02.13"]
[EventType "swiss"]
[EventCountry "NET"]
[TimeControl "600"]
[WhiteClock "0:01:46"]
[BlackClock "0:01:52"]

1. e4 {[%emt 0:00:02]} c5 {[%emt 0:00:02]} 2. Nf3 {[%emt 0:00:02]} e6 {[%emt 0:00:02]} 3. d4 {[%emt 0:00:01]} cxd4 {[%emt 0:00:00]} 4. Nxd4 {[%emt 0:00:01]} Nc6 {[%emt 0:00:01]} 5. Nc3 {[%emt 0:00:01]} Nf6 {[%emt 0:00:02]} 6. Nxc6 {[%emt 0:00:05]} bxc6 {[%emt 0:00:00]} 7. e5 {[%emt 0:00:00]} Nd5 {[%emt 0:00:01]} 8. Ne4 {[%emt 0:00:01]} Bb7 {[%emt 0:00:01]} 9. Be2 {[%emt 0:00:02]} c5 {[%emt 0:00:01]} 10. O-O {[%emt 0:00:06]} Qc7 {[%emt 0:00:02]} 11. Nd6+ {[%emt 0:00:00]} Bxd6 {[%emt 0:00:01]} 12. exd6 {[%emt 0:00:00]} Qc6 {[%emt 0:00:01]} 13. f3 {[%emt 0:00:02]} c4 {[%emt 0:00:03]} 14. Qd4 {[%emt 0:00:06]} O-O {[%emt 0:00:01]} 15. Bxc4 {[%emt 0:00:07]} Rfc8 {[%emt 0:00:02]} 16. b3 {[%emt 0:00:03]} Qxd6 {[%emt 0:00:07]} 17. Rd1 {[%emt 0:00:03]} Qb6 {[%emt 0:00:32]} 18. Qxb6 {[%emt 0:00:26]} Nxb6 {[%emt 0:00:03]} 19. Bd3 {[%emt 0:00:02]} a5 {[%emt 0:00:04]} 20. a4 {[%emt 0:00:02]} Ba6 {[%emt 0:00:44]} 21. Bxa6 {[%emt 0:02:02]} Rxa6 {[%emt 0:00:01]} 22. c4 {[%emt 0:00:01]} d5 {[%emt 0:01:29]} 23. Be3 {[%emt 0:00:03]} h6 {[%emt 0:01:03]} 24. Rac1 {[%emt 0:01:15]} Rb8 {[%emt 0:01:32]} 25. Bxb6 {[%emt 0:01:20]} Raxb6 {[%emt 0:00:05]} 26. cxd5 {[%emt 0:00:01]} exd5 {[%emt 0:00:01]} 27. Rxd5 {[%emt 0:00:04]} Rxb3 {[%emt 0:00:02]} 28. Rxa5 {[%emt 0:00:01]} Rb2 {[%emt 0:00:32]} 29. Rac5 {[%emt 0:00:08]} Ra2 {[%emt 0:00:45]} 30. Rc8+ {[%emt 0:00:02]} Rxc8 {[%emt 0:00:00]} 31. Rxc8+ {[%emt 0:00:01]} Kh7 {[%emt 0:00:00]} 32. Rc4 {[%emt 0:00:00]} g5 {[%emt 0:00:02]} 33. h4 {[%emt 0:00:02]} Kg6 {[%emt 0:00:07]} 34. Kh2 {[%emt 0:00:04]} f5 {[%emt 0:00:03]} 35. Kh3 {[%emt 0:00:26]} f4 {[%emt 0:00:17]} 36. hxg5 {[%emt 0:00:21]} hxg5 {[%emt 0:00:01]} 37. Rb4 {[%emt 0:00:06]} Kh5 {[%emt 0:00:04]} 38. Re4 {[%emt 0:00:06]} Ra1 {[%emt 0:00:03]} 39. Kh2 {[%emt 0:00:09]} Ra2 {[%emt 0:00:02]} 40. Rb4 {[%emt 0:00:06]} Kg6 {[%emt 0:00:04]} 41. Rb6+ {[%emt 0:00:06]} Kh5 {[%emt 0:00:01]} 42. Ra6 {[%emt 0:00:09]} g4 {[%emt 0:00:02]} 43. fxg4+ {[%emt 0:00:05]} Kxg4 {[%emt 0:00:00]} 44. Kg1 {[%emt 0:00:17]} Ra1+ {[%emt 0:00:01]} 45. Kf2 {[%emt 0:00:04]} Ra2+ {[%emt 0:00:00]} 46. Kg1 {[%emt 0:00:01]} Ra1+ {[%emt 0:00:01]} 47. Kf2 {[%emt 0:00:01]} Ra2+ {[%emt 0:00:00]} 48. Kg1 {[%emt 0:00:01]} 1/2-1/2

[Event "CCT Chessable Masters Play-In 2025"]
[Site "Online"]
[Date "2025.02.17"]
[Round "1.19"]
[White "Tabatabaei, M. Amin"]
[Black "Dvirnyy, Danyyil"]
[Result "1-0"]
[ECO "E04"]
[WhiteElo "2666"]
[BlackElo "2488"]
[PlyCount "141"]
[EventDate "2025.02.13"]
[EventType "swiss"]
[EventCountry "NET"]
[TimeControl "600"]
[WhiteClock "0:00:25"]
[BlackClock "0:00:13"]

1. d4 {[%emt 0:00:02]} Nf6 {[%emt 0:00:02]} 2. Nf3 {[%emt 0:00:11]} e6 {[%emt 0:00:04]} 3. g3 {[%emt 0:00:03]} d5 {[%emt 0:00:04]} 4. Bg2 {[%emt 0:00:02]} c5 {[%emt 0:00:03]} 5. c4 {[%emt 0:00:04]} dxc4 {[%emt 0:00:04]} 6. O-O {[%emt 0:00:01]} Nc6 {[%emt 0:00:01]} 7. dxc5 {[%emt 0:00:02]} Qxd1 {[%emt 0:00:01]} 8. Rxd1 {[%emt 0:00:00]} Bxc5 {[%emt 0:00:01]} 9. Nbd2 {[%emt 0:00:01]} c3 {[%emt 0:00:01]} 10. bxc3 {[%emt 0:00:00]} O-O {[%emt 0:00:01]} 11. Nb3 {[%emt 0:00:02]} Be7 {[%emt 0:00:01]} 12. Bb2 {[%emt 0:00:03]} Bd7 {[%emt 0:00:05]} 13. c4 {[%emt 0:00:01]} Rfd8 {[%emt 0:00:04]} 14. Nfd4 {[%emt 0:00:06]} Rac8 {[%emt 0:00:01]} 15. Nb5 {[%emt 0:00:01]} b6 {[%emt 0:00:01]} 16. Nd6 {[%emt 0:00:01]} Rb8 {[%emt 0:00:16]} 17. Rd2 {[%emt 0:00:19]} a5 {[%emt 0:00:18]} 18. Rad1 {[%emt 0:00:38]} a4 {[%emt 0:01:05]} 19. Nc1 {[%emt 0:01:05]} e5 {[%emt 0:02:36]} 20. Bxc6 {[%emt 0:00:19]} Bxc6 {[%emt 0:00:01]} 21. Bxe5 {[%emt 0:00:01]} Ra8 {[%emt 0:01:33]} 22. Nf5 {[%emt 0:00:17]} Rxd2 {[%emt 0:00:01]} 23. Nxe7+ {[%emt 0:00:05]} Kf8 {[%emt 0:00:01]} 24. Rxd2 {[%emt 0:00:00]} Kxe7 {[%emt 0:00:01]} 25. a3 {[%emt 0:00:44]} b5 {[%emt 0:00:25]} 26. Bxf6+ {[%emt 0:00:32]} gxf6 {[%emt 0:00:00]} 27. c5 {[%emt 0:00:34]} Rc8 {[%emt 0:00:07]} 28. Na2 {[%emt 0:00:03]} Be4 {[%emt 0:00:05]} 29. Nc3 {[%emt 0:00:40]} f5 {[%emt 0:00:01]} 30. f3 {[%emt 0:01:09]} Rxc5 {[%emt 0:00:02]} 31. Na2 {[%emt 0:00:02]} Bd5 {[%emt 0:00:12]} 32. Nb4 {[%emt 0:00:01]} Be6 {[%emt 0:00:02]} 33. Rd3 {[%emt 0:00:01]} Rc1+ {[%emt 0:00:02]} 34. Kf2 {[%emt 0:00:00]} Bc4 {[%emt 0:00:03]} 35. Re3+ {[%emt 0:00:06]} Kd6 {[%emt 0:00:01]} 36. h3 {[%emt 0:00:00]} Rb1 {[%emt 0:00:01]} 37. g4 {[%emt 0:00:05]} fxg4 {[%emt 0:00:02]} 38. hxg4 {[%emt 0:00:00]} Kc5 {[%emt 0:00:04]} 39. Re5+ {[%emt 0:00:10]} Kd6 {[%emt 0:00:05]} 40. f4 {[%emt 0:00:08]} Rb3 {[%emt 0:00:03]} 41. Re3 {[%emt 0:00:08]} Kc5 {[%emt 0:00:04]} 42. Nc2 {[%emt 0:00:07]} Rb2 {[%emt 0:00:06]} 43. Rc3 {[%emt 0:00:01]} Rb3 {[%emt 0:00:05]} 44. Re3 {[%emt 0:00:05]} Rb2 {[%emt 0:00:06]} 45. Re5+ {[%emt 0:00:08]} Kd6 {[%emt 0:00:02]} 46. Nd4 {[%emt 0:00:00]} b4 {[%emt 0:00:13]} 47. axb4 {[%emt 0:00:00]} a3 {[%emt 0:00:01]} 48. Nb5+ {[%emt 0:00:24]} Bxb5 {[%emt 0:00:01]} 49. Rxb5 {[%emt 0:00:00]} a2 {[%emt 0:00:00]} 50. Ra5 {[%emt 0:00:00]} Rxb4 {[%emt 0:00:01]} 51. Kf3 {[%emt 0:00:11]} Rb2 {[%emt 0:00:01]} 52. f5 {[%emt 0:00:06]} Kc6 {[%emt 0:00:01]} 53. e4 {[%emt 0:00:00]} Kb6 {[%emt 0:00:00]} 54. Ra8 {[%emt 0:00:01]} h6 {[%emt 0:00:07]} 55. Kf4 {[%emt 0:00:17]} f6 {[%emt 0:00:06]} 56. e5 {[%emt 0:00:01]} Rb4+ {[%emt 0:00:01]} 57. Kg3 {[%emt 0:00:04]} fxe5 {[%emt 0:00:05]} 58. Rxa2 {[%emt 0:00:01]} Kc5 {[%emt 0:00:00]} 59. Ra6 {[%emt 0:00:04]} Kd4 {[%emt 0:00:38]} 60. Rxh6 {[%emt 0:00:01]} Rb3+ {[%emt 0:00:01]} 61. Kh4 {[%emt 0:00:01]} e4 {[%emt 0:00:05]} 62. Re6 {[%emt 0:00:02]} e3 {[%emt 0:00:01]} 63. f6 {[%emt 0:00:01]} Rb1 {[%emt 0:00:09]} 64. g5 {[%emt 0:00:03]} Rh1+ {[%emt 0:00:03]} 65. Kg4 {[%emt 0:00:01]} Rg1+ {[%emt 0:00:00]} 66. Kh5 {[%emt 0:00:01]} Rf1 {[%emt 0:00:03]} 67. g6 {[%emt 0:00:05]} Rh1+ {[%emt 0:00:04]} 68. Kg5 {[%emt 0:00:02]} Rg1+ {[%emt 0:00:00]} 69. Kh6 {[%emt 0:00:00]} Rh1+ {[%emt 0:00:00]} 70. Kg7 {[%emt 0:00:01]} Rg1 {[%emt 0:00:02]} 71. f7 {[%emt 0:00:00]} 1-0

[Event "CCT Chessable Masters Play-In 2025"]
[Site "Online"]
[Date "2025.02.17"]
[Round "1.20"]
[White "Grandelius, Nils"]
[Black "Le, Tuan Minh"]
[Result "0-1"]
[ECO "D13"]
[WhiteElo "2644"]
[BlackElo "2598"]
[PlyCount "214"]
[EventDate "2025.02.13"]
[EventType "swiss"]
[EventCountry "NET"]
[TimeControl "600"]
[BlackClock "0:00:05"]

1. d4 {[%emt 0:00:02]} d5 {[%emt 0:00:06]} 2. c4 {[%emt 0:00:01]} c6 {[%emt 0:00:02]} 3. cxd5 {[%emt 0:00:02]} cxd5 {[%emt 0:00:01]} 4. Bf4 {[%emt 0:00:02]} Nf6 {[%emt 0:00:03]} 5. Nc3 {[%emt 0:00:02]} Nc6 {[%emt 0:00:02]} 6. Nf3 {[%emt 0:00:01]} a6 {[%emt 0:00:19]} 7. Ne5 {[%emt 0:00:04]} Bd7 {[%emt 0:01:01]} 8. e3 {[%emt 0:00:02]} e6 {[%emt 0:00:02]} 9. Bd3 {[%emt 0:00:02]} Be7 {[%emt 0:00:08]} 10. O-O {[%emt 0:00:07]} O-O {[%emt 0:00:04]} 11. Qf3 {[%emt 0:00:10]} g6 {[%emt 0:02:12]} 12. Bh6 {[%emt 0:00:12]} Re8 {[%emt 0:00:05]} 13. Qh3 {[%emt 0:01:19]} Nxe5 {[%emt 0:00:22]} 14. dxe5 {[%emt 0:00:03]} Nh5 {[%emt 0:00:00]} 15. Rad1 {[%emt 0:00:10]} Bc6 {[%emt 0:00:19]} 16. Ne2 {[%emt 0:00:21]} Qc7 {[%emt 0:00:22]} 17. f4 {[%emt 0:00:35]} Bb5 {[%emt 0:00:01]} 18. Nd4 {[%emt 0:00:29]} Bxd3 {[%emt 0:00:02]} 19. Rxd3 {[%emt 0:00:00]} Rac8 {[%emt 0:00:24]} 20. Qf3 {[%emt 0:01:58]} Ng7 {[%emt 0:00:12]} 21. h3 {[%emt 0:00:18]} Bf8 {[%emt 0:00:11]} 22. Qf2 {[%emt 0:00:23]} Qc4 {[%emt 0:00:22]} 23. Rb3 {[%emt 0:00:04]} b5 {[%emt 0:00:04]} 24. a3 {[%emt 0:00:03]} Qc7 {[%emt 0:00:42]} 25. Rc3 {[%emt 0:00:08]} Qd7 {[%emt 0:00:01]} 26. Rfc1 {[%emt 0:00:01]} Rc4 {[%emt 0:00:01]} 27. b3 {[%emt 0:00:14]} Rxc3 {[%emt 0:00:02]} 28. Rxc3 {[%emt 0:00:00]} Rc8 {[%emt 0:00:02]} 29. Qc2 {[%emt 0:00:05]} Rxc3 {[%emt 0:00:01]} 30. Qxc3 {[%emt 0:00:00]} Nf5 {[%emt 0:00:17]} 31. Bxf8 {[%emt 0:00:17]} Kxf8 {[%emt 0:00:08]} 32. Qc5+ {[%emt 0:00:04]} Kg7 {[%emt 0:00:02]} 33. Nxf5+ {[%emt 0:00:23]} gxf5 {[%emt 0:00:00]} 34. Kf2 {[%emt 0:00:01]} Qd8 {[%emt 0:00:01]} 35. b4 {[%emt 0:00:35]} Qh4+ {[%emt 0:00:01]} 36. Kf3 {[%emt 0:00:07]} Qh5+ {[%emt 0:00:01]} 37. Kg3 {[%emt 0:00:04]} Qe2 {[%emt 0:00:06]} 38. Kh2 {[%emt 0:00:10]} h6 {[%emt 0:00:14]} 39. Qc3 {[%emt 0:00:09]} Qc4 {[%emt 0:00:17]} 40. Qe1 {[%emt 0:00:04]} Qd3 {[%emt 0:00:01]} 41. Qc1 {[%emt 0:00:07]} Qb3 {[%emt 0:00:01]} 42. Kg3 {[%emt 0:00:04]} d4 {[%emt 0:00:01]} 43. Kf2 {[%emt 0:00:02]} d3 {[%emt 0:00:01]} 44. Ke1 {[%emt 0:00:02]} Qa2 {[%emt 0:00:00]} 45. Qd2 {[%emt 0:00:03]} Qxa3 {[%emt 0:00:01]} 46. Kf2 {[%emt 0:00:00]} a5 {[%emt 0:00:08]} 47. bxa5 {[%emt 0:00:01]} b4 {[%emt 0:00:00]} 48. a6 {[%emt 0:00:01]} b3 {[%emt 0:00:02]} 49. a7 {[%emt 0:00:02]} Qxa7 {[%emt 0:00:02]} 50. Qxd3 {[%emt 0:00:00]} Qa2+ {[%emt 0:00:00]} 51. Kg3 {[%emt 0:00:01]} b2 {[%emt 0:00:01]} 52. Qd8 {[%emt 0:00:00]} b1=Q {[%emt 0:00:10]} 53. Qf6+ {[%emt 0:00:01]} Kg8 {[%emt 0:00:00]} 54. Qd8+ {[%emt 0:00:00]} Kh7 {[%emt 0:00:01]} 55. Qe7 {[%emt 0:00:01]} Qe1+ {[%emt 0:00:17]} 56. Kh2 {[%emt 0:00:00]} Qxg2+ {[%emt 0:00:20]} 57. Kxg2 {[%emt 0:00:00]} Qe2+ {[%emt 0:00:00]} 58. Kh1 {[%emt 0:00:01]} Qf3+ {[%emt 0:00:00]} 59. Kh2 {[%emt 0:00:01]} Qf2+ {[%emt 0:00:01]} 60. Kh1 {[%emt 0:00:00]} Qe1+ {[%emt 0:00:01]} 61. Kg2 {[%emt 0:00:01]} Qe2+ {[%emt 0:00:00]} 62. Kh1 {[%emt 0:00:01]} Qh5 {[%emt 0:00:00]} 63. Kg2 {[%emt 0:00:02]} Qg6+ {[%emt 0:00:04]} 64. Kf2 {[%emt 0:00:01]} Kg7 {[%emt 0:00:00]} 65. Qh4 {[%emt 0:00:02]} Kh7 {[%emt 0:00:01]} 66. Qe7 {[%emt 0:00:01]} Kg8 {[%emt 0:00:01]} 67. Qh4 {[%emt 0:00:00]} Kg7 {[%emt 0:00:01]} 68. Qe7 {[%emt 0:00:01]} Qh5 {[%emt 0:00:00]} 69. Qf6+ {[%emt 0:00:00]} Kh7 {[%emt 0:00:01]} 70. Kg3 {[%emt 0:00:01]} Qg6+ {[%emt 0:00:01]} 71. Qxg6+ {[%emt 0:00:00]} fxg6 {[%emt 0:00:00]} 72. h4 {[%emt 0:00:01]} Kg7 {[%emt 0:00:00]} 73. Kf3 {[%emt 0:00:00]} Kf7 {[%emt 0:00:01]} 74. Ke2 {[%emt 0:00:00]} Ke7 {[%emt 0:00:00]} 75. Kd3 {[%emt 0:00:01]} Kd7 {[%emt 0:00:00]} 76. Kd4 {[%emt 0:00:02]} Kc6 {[%emt 0:00:01]} 77. Kc4 {[%emt 0:00:00]} Kb6 {[%emt 0:00:01]} 78. Kb4 {[%emt 0:00:01]} Kc6 {[%emt 0:00:00]} 79. Kc4 {[%emt 0:00:00]} h5 {[%emt 0:00:03]} 80. Kb4 {[%emt 0:00:03]} Kd5 {[%emt 0:00:00]} 81. Kb5 {[%emt 0:00:00]} Ke4 {[%emt 0:00:00]} 82. Kc6 {[%emt 0:00:01]} Kxe3 {[%emt 0:00:01]} 83. Kd6 {[%emt 0:00:00]} Kxf4 {[%emt 0:00:00]} 84. Kxe6 {[%emt 0:00:00]} Kg4 {[%emt 0:00:02]} 85. Kd6 {[%emt 0:00:02]} f4 {[%emt 0:00:00]} 86. e6 {[%emt 0:00:00]} f3 {[%emt 0:00:00]} 87. e7 {[%emt 0:00:00]} f2 {[%emt 0:00:00]} 88. e8=Q {[%emt 0:00:01]} f1=Q {[%emt 0:00:01]} 89. Qxg6+ {[%emt 0:00:00]} Kxh4 {[%emt 0:00:00]} 90. Qe4+ {[%emt 0:00:01]} Kg3 {[%emt 0:00:01]} 91. Qg6+ {[%emt 0:00:00]} Kh4 {[%emt 0:00:01]} 92. Qe4+ {[%emt 0:00:01]} Kg5 {[%emt 0:00:01]} 93. Kc7 {[%emt 0:00:05]} Qf5 {[%emt 0:00:00]} 94. Qe7+ {[%emt 0:00:02]} Qf6 {[%emt 0:00:00]} 95. Qe2 {[%emt 0:00:00]} Qf4+ {[%emt 0:00:00]} 96. Kb6 {[%emt 0:00:01]} Qg4 {[%emt 0:00:01]} 97. Qe7+ {[%emt 0:00:01]} Kf4 {[%emt 0:00:00]} 98. Qb4+ {[%emt 0:00:00]} Kf5 {[%emt 0:00:01]} 99. Qc5+ {[%emt 0:00:02]} Kg6 {[%emt 0:00:00]} 100. Qd6+ {[%emt 0:00:01]} Kh7 {[%emt 0:00:00]} 101. Qe7+ {[%emt 0:00:00]} Kh6 {[%emt 0:00:00]} 102. Qf8+ {[%emt 0:00:01]} Qg7 {[%emt 0:00:01]} 103. Qf4+ {[%emt 0:00:01]} Kh7 {[%emt 0:00:00]} 104. Qf3 {[%emt 0:00:01]} Qg6+ {[%emt 0:00:00]} 105. Kc7 {[%emt 0:00:01]} Qg4 {[%emt 0:00:00]} 106. Qf7+ {[%emt 0:00:01]} Qg7 {[%emt 0:00:00]} 107. Qxg7+ {[%emt 0:00:00]} Kxg7 {[%emt 0:00:02]} 0-1

[Event "CCT Chessable Masters Play-In 2025"]
[Site "Online"]
[Date "2025.02.17"]
[Round "1.21"]
[White "Niemann, Hans Moke"]
[Black "Sychev, Klementy"]
[Result "1-0"]
[ECO "C54"]
[WhiteElo "2734"]
[BlackElo "2542"]
[PlyCount "67"]
[EventDate "2025.02.13"]
[EventType "swiss"]
[EventCountry "NET"]
[TimeControl "600"]
[WhiteClock "0:04:13"]
[BlackClock "0:00:55"]

1. e4 {[%emt 0:00:08]} e5 {[%emt 0:00:05]} 2. Nf3 {[%emt 0:00:22]} Nc6 {[%emt 0:00:01]} 3. Bc4 {[%emt 0:00:02]} Nf6 {[%emt 0:00:02]} 4. d3 {[%emt 0:00:03]} Bc5 {[%emt 0:00:02]} 5. c3 {[%emt 0:00:01]} O-O {[%emt 0:00:04]} 6. O-O {[%emt 0:00:02]} d5 {[%emt 0:00:01]} 7. exd5 {[%emt 0:00:01]} Nxd5 {[%emt 0:00:00]} 8. Re1 {[%emt 0:00:07]} Bg4 {[%emt 0:00:01]} 9. h3 {[%emt 0:00:05]} Bh5 {[%emt 0:00:01]} 10. a4 {[%emt 0:00:00]} a5 {[%emt 0:00:14]} 11. Nbd2 {[%emt 0:00:02]} Nb6 {[%emt 0:00:02]} 12. Bb3 {[%emt 0:00:01]} Kh8 {[%emt 0:00:18]} 13. Ne4 {[%emt 0:00:05]} Nd7 {[%emt 0:00:01]} 14. Ng3 {[%emt 0:00:09]} Bxf3 {[%emt 0:00:02]} 15. Qxf3 {[%emt 0:00:01]} f5 {[%emt 0:00:00]} 16. Qh5 {[%emt 0:01:47]} Nf6 {[%emt 0:01:44]} 17. Qe2 {[%emt 0:00:11]} f4 {[%emt 0:01:06]} 18. Ne4 {[%emt 0:00:11]} f3 {[%emt 0:00:04]} 19. gxf3 {[%emt 0:00:01]} Nxe4 {[%emt 0:01:27]} 20. Qxe4 {[%emt 0:00:02]} Bd6 {[%emt 0:00:05]} 21. Kf1 {[%emt 0:00:18]} Nb8 {[%emt 0:00:34]} 22. d4 {[%emt 0:00:39]} Nd7 {[%emt 0:00:04]} 23. Bc2 {[%emt 0:00:01]} g6 {[%emt 0:01:04]} 24. Bh6 {[%emt 0:00:10]} Re8 {[%emt 0:00:03]} 25. Re2 {[%emt 0:00:28]} c6 {[%emt 0:00:17]} 26. Rae1 {[%emt 0:00:05]} Bf8 {[%emt 0:00:48]} 27. Bc1 {[%emt 0:00:07]} Bg7 {[%emt 0:00:06]} 28. Qg4 {[%emt 0:00:04]} Qc7 {[%emt 0:00:05]} 29. Bg5 {[%emt 0:00:17]} Rf8 {[%emt 0:00:05]} 30. Qh4 {[%emt 0:00:04]} Kg8 {[%emt 0:00:03]} 31. f4 {[%emt 0:00:04]} exd4 {[%emt 0:00:29]} 32. Re7 {[%emt 0:00:02]} Qd6 {[%emt 0:00:04]} 33. Bb3+ {[%emt 0:00:07]} Kh8 {[%emt 0:00:03]} 34. Rxg7 {[%emt 0:00:00]} 1-0